bitfinex/quotes_ETHUSD_20240621
["timestamp","ask_amount","ask_price","bid_price","bid_amount"]
[1718979763583,2.27758,3512.5,3511.8,2.27803]
[1718979763584,2.27771,3512.3,3511.8,2.27803]
[1718979763770,2.27771,3512.3,3511.5,2.2782]
[1718979764078,0.005,3512.9,3510.8,2.27866]
[1718979764079,2.27768,3512.4,3510.8,2.27866]
[1718979764282,2.27781,3512.2,3511.6,2.2781]
[1718979764802,2.27776,3512.3,3511.8,2.27797]
[1718979765099,2.27758,3512.5,3511.7,2.27807]
[1718979765301,2.27769,3512.4,3511.9,2.27795]
[1718979765601,2.27758,3512.5,3511.5,2.27821]
[1718979765765,0.005,3512.9,3512.1,2.27779]
[1718979765766,2.27754,3512.6,3512.1,2.27779]
[1718979765960,2.27754,3512.6,3512.0,2.27789]
[1718979766208,2.27752,3512.6,3512.1,2.2778]
[1718979766361,2.27758,3512.5,3512.1,2.2778]
[1718979766566,2.27764,3512.4,3512.0,2.2779]
[1718979766980,2.27764,3512.4,3511.8,2.27803]
[1718979766981,2.27742,3512.8,3510.7,2.3688]
[1718979767165,2.27758,3512.5,3511.2,2.27842]
[1718979767372,2.27758,3512.5,3512.0,2.27784]
[1718979767673,2.27762,3512.5,3511.2,2.27836]
[1718979767872,2.27777,3512.2,3511.6,2.27811]
[1718979768216,0.005,3512.9,3510.7,2.3688]
[1718979768217,2.27745,3512.7,3510.7,2.3688]
[1718979768507,2.2781,3511.7,3510.9,2.27855]
[1718979768707,2.27785,3512.1,3510.8,2.79624]
[1718979768877,2.27745,3512.7,3510.8,2.79624]
[1718979769201,2.27805,3511.8,3511.3,2.27834]
[1718979769392,2.27782,3512.2,3511.0,2.27854]
[1718979769588,2.27816,3511.6,3511.2,2.27842]
[1718979769898,2.27738,3512.8,3511.2,2.27841]
[1718979769899,2.27806,3511.8,3511.2,2.27841]
[1718979770100,2.27798,3511.9,3511.4,2.27823]
[1718979770266,2.27746,3512.7,3511.1,2.27843]
[1718979770604,2.27795,3512.0,3511.6,2.27815]
[1718979771163,2.27815,3511.7,3511.2,2.2784]
[1718979771511,2.27815,3511.7,3511.3,2.27834]
[1718979771894,2.2782,3511.6,3511.2,2.27841]
[1718979772284,2.2782,3511.6,3510.8,2.27861]
[1718979772483,2.2782,3511.6,3510.7,4.6475]
[1718979772667,2.2782,3511.6,3511.0,2.27855]
[1718979772998,2.2782,3511.6,3511.1,2.27843]
[1718979772999,2.27819,3511.6,3511.1,2.27843]
[1718979773209,2.27819,3511.6,3510.8,2.74342]
[1718979773401,2.27819,3511.6,3510.7,2.3688]
[1718979773402,2.4502,3512.2,3510.7,2.3688]
[1718979773715,2.4502,3512.2,3511.0,2.27854]
[1718979773716,2.27817,3511.6,3511.0,2.27854]
[1718979774006,2.4502,3512.2,3510.1,2.27912]
[1718979774007,2.27883,3510.6,3510.1,2.27912]
[1718979774179,2.27873,3510.8,3510.2,2.27905]
[1718979774380,2.27876,3510.7,3510.2,2.27905]
[1718979774916,2.27843,3511.2,3510.5,2.27881]
[1718979775070,2.27858,3511.0,3510.5,2.27884]
[1718979775415,2.27856,3511.0,3510.4,2.27894]
[1718979775726,2.27886,3510.6,3510.1,2.27912]
[1718979775880,2.27892,3510.5,3510.0,3.015746]
[1718979776229,2.27869,3510.8,3510.2,2.27906]
[1718979776370,5.27786,3512.1,3510.5,2.27887]
[1718979776371,2.27834,3511.4,3510.5,2.27887]
[1718979776574,2.27851,3511.1,3510.6,2.3027307]
[1718979776819,2.27834,3511.4,3510.1,2.27913]
[1718979777001,2.27829,3511.4,3511.0,2.27855]
[1718979777386,2.27842,3511.2,3510.8,2.27868]
[1718979777587,2.2783,3511.4,3510.9,2.27861]
[1718979777771,2.2782,3511.6,3510.8,2.27866]
[1718979777976,2.27829,3511.4,3510.9,2.27856]
[1718979778210,2.2782,3511.6,3511.0,2.27851]
[1718979778389,2.27799,3511.9,3510.4,2.2789]
[1718979778585,2.27859,3511.0,3510.5,0.53874686]
[1718979778790,2.27862,3510.9,3510.2,0.3015686]
[1718979778988,2.27868,3510.8,3510.2,2.5806186]
[1718979779189,2.27896,3510.4,3510.0,0.736556]
[1718979779520,2.27864,3510.9,3509.5,2.4796]
[1718979779678,2.27876,3510.7,3510.1,2.27912]
[1718979780014,2.27865,3510.9,3509.5,4.75907]
[1718979780313,2.27856,3511.0,3510.3,2.27898]
[1718979780476,2.27838,3511.3,3510.3,2.27898]
[1718979780477,2.27875,3510.7,3510.3,2.279]
[1718979780685,2.27838,3511.3,3510.3,2.279]
[1718979780974,2.27803,3511.8,3510.1,2.27913]
[1718979781174,2.27877,3510.7,3510.3,2.27899]
[1718979781667,2.27851,3511.1,3510.3,2.27899]
[1718979781779,2.27829,3511.4,3510.8,2.27867]
[1718979781975,2.27835,3511.3,3510.8,2.27867]
[1718979782172,2.27822,3511.5,3510.5,2.497]
[1718979782396,2.27822,3511.5,3509.9,2.497]
[1718979782397,2.27861,3510.9,3509.9,2.497]
[1718979782610,2.27828,3511.5,3510.6,2.27879]
[1718979782829,2.27817,3511.6,3510.8,2.27868]
[1718979783036,2.27817,3511.6,3511.1,2.27842]
[1718979783539,2.27823,3511.5,3511.2,0.04885858]
[1718979783745,2.27823,3511.5,3511.1,2.27842]
[1718979784132,2.27803,3511.8,3511.1,2.27848]
[1718979784295,2.4502,3512.2,3510.3,2.807]
[1718979784497,2.4502,3512.2,3509.8,0.759907]
[1718979784498,2.27822,3511.6,3509.9,5.304]
[1718979784843,2.27797,3511.9,3511.4,2.27825]
[1718979785043,2.27797,3511.9,3511.0,2.2785]
[1718979785044,2.27808,3511.8,3511.3,2.27831]
[1718979785199,2.27797,3511.9,3511.4,2.27829]
[1718979785200,2.27798,3511.9,3511.4,2.27829]
[1718979785706,2.27778,3512.2,3511.7,2.27809]
[1718979785914,2.471,3513.3,3511.7,2.733715]
[1718979785915,2.27759,3512.5,3511.7,2.733715]
[1718979786122,2.27785,3512.1,3511.6,2.27815]
[1718979786324,2.27797,3511.9,3511.5,2.27821]
[1718979786547,2.27782,3512.2,3511.7,2.27806]
[1718979786697,2.27782,3512.2,3511.5,2.27822]
[1718979786906,2.27812,3511.7,3511.3,2.27834]
[1718979787243,2.27757,3512.6,3511.4,2.27827]
[1718979787244,2.27803,3511.9,3511.4,2.27827]
[1718979787539,2.2777,3512.3,3511.0,2.27854]
[1718979787709,2.27815,3511.7,3511.1,2.27848]
[1718979787911,2.27793,3512.0,3511.1,2.27848]
[1718979788133,2.27808,3511.8,3511.2,2.27841]
[1718979788303,2.27816,3511.6,3511.2,2.27841]
[1718979788499,2.2784,3511.3,3510.7,2.2787]
[1718979788703,2.2784,3511.3,3510.8,2.27863]
[1718979788939,2.2784,3511.3,3510.9,2.2786]
[1718979789239,2.27821,3511.6,3511.1,2.27843]
[1718979789446,2.2783,3511.4,3511.0,2.27855]
[1718979789645,2.27823,3511.5,3510.8,2.27867]
[1718979789941,2.27823,3511.5,3510.5,0.9512525]
[1718979790241,2.27807,3511.8,3510.2,2.27906]
[1718979790242,2.27876,3510.7,3510.2,2.27906]
[1718979790449,2.27892,3510.5,3509.8,0.759907]
[1718979790655,3.0,3512.1,3509.8,0.759907]
[1718979790656,2.2785,3511.1,3509.8,0.759907]
[1718979790947,2.27871,3510.8,3510.2,2.27906]
[1718979791134,2.27868,3510.8,3510.4,2.27892]
[1718979791343,2.27824,3511.5,3510.4,2.27892]
[1718979791344,3.0,3512.1,3510.4,0.455791]
[1718979791525,2.2777,3512.4,3510.3,2.27898]
[1718979791723,2.27814,3511.7,3510.6,2.27876]
[1718979791948,2.27814,3511.7,3510.1,2.27911]
[1718979792156,2.27771,3512.3,3511.0,2.27851]
[1718979792442,2.278,3511.9,3511.4,2.27827]
[1718979792658,2.27803,3511.8,3511.4,2.27827]
[1718979793119,2.27803,3511.9,3511.4,2.27826]
[1718979793325,2.27803,3511.8,3511.4,2.27823]
[1718979793522,2.27758,3512.5,3511.4,2.733937]
[1718979793728,2.27802,3511.9,3511.4,2.733927]
[1718979793949,2.27802,3511.9,3511.5,2.27821]
[1718979794648,2.2779,3512.0,3511.6,2.27814]
[1718979794832,2.2779,3512.0,3511.4,2.27829]
[1718979795168,2.27803,3511.8,3511.4,2.27829]
[1718979795309,2.27798,3511.9,3511.5,2.27822]
[1718979795714,2.27798,3511.9,3511.5,2.27821]
[1718979796148,2.27804,3511.8,3511.2,4.5722]
[1718979796369,2.27804,3511.8,3511.0,2.27851]
[1718979796370,2.27811,3511.7,3511.3,2.27834]
[1718979796514,2.27798,3511.9,3511.5,2.27822]
[1718979796713,2.27803,3511.8,3511.3,2.27835]
[1718979796943,2.3742,3512.8,3511.1,2.27846]
[1718979796944,2.27821,3511.6,3511.1,2.27846]
[1718979797248,2.27766,3512.4,3510.2,0.56279007]
[1718979797461,2.27831,3511.4,3510.8,2.27867]
[1718979797748,2.27842,3511.2,3510.8,2.27866]
[1718979797952,2.27835,3511.4,3510.8,2.27866]
[1718979798159,2.27818,3511.6,3510.9,2.27856]
[1718979798370,2.2783,3511.4,3510.9,2.27858]
[1718979798525,2.27841,3511.3,3510.9,2.27858]
[1718979798719,2.27829,3511.4,3511.0,2.27854]
[1718979798921,2.27786,3512.1,3511.4,2.27829]
[1718979799149,2.27786,3512.1,3511.2,2.27839]
[1718979799359,2.27794,3512.0,3511.6,2.27816]
[1718979799565,0.005,3512.9,3511.7,0.455645]
[1718979799862,0.005,3512.9,3512.8,2.27738]
[1718979800225,0.005,3512.9,3512.8,4.55476]
[1718979800919,0.005,3512.9,3512.8,6.83214]
[1718979802956,0.005,3512.9,3512.8,9.10952]
[1718979803228,0.005,3512.9,3512.8,6.83214]
[1718979803532,0.005,3512.9,3512.8,7.978486]
[1718979803938,0.005,3512.9,3512.8,10.255866]
[1718979804128,0.005,3512.9,3512.8,7.978486]
[1718979804348,0.005,3512.9,3512.8,10.255866]
[1718979805179,0.005,3512.9,3512.8,10.805866]
[1718979805327,0.005,3512.9,3512.8,8.528486]
[1718979805535,0.005,3512.9,3512.8,10.805866]
[1718979806089,0.005,3512.9,3512.8,7.978486]
[1718979806748,0.005,3512.9,3512.8,10.255866]
[1718979807268,0.005,3512.9,3512.8,7.978486]
[1718979808355,0.005,3512.9,3512.8,8.528486]
[1718979808555,0.005,3512.9,3512.8,7.978486]
[1718979809498,0.005,3512.9,3512.8,5.701106]
[1718979809646,0.005,3512.9,3512.8,7.978486]
[1718979809845,0.005,3512.9,3512.7,2.27743]
[1718979810070,0.005,3512.9,3512.2,8.0763]
[1718979810375,0.005,3512.9,3512.7,2.27738]
[1718979810598,0.005,3512.9,3512.3,2.27768]
[1718979810754,0.005,3512.9,3512.8,2.27738]
[1718979810937,0.005,3512.9,3512.5,2.27752]
[1718979811138,0.005,3512.9,3512.4,2.27763]
[1718979811380,2.27755,3512.6,3512.1,2.27778]
[1718979811585,2.27751,3512.6,3511.6,2.3454]
[1718979811893,2.27765,3512.4,3511.9,2.27796]
[1718979812240,2.27745,3512.7,3511.9,0.455598]
[1718979812539,2.2775,3512.7,3512.1,2.27783]
[1718979812744,2.28232,3512.9,3511.9,2.27793]
[1718979812997,2.28232,3512.9,3511.7,2.27809]
[1718979812998,2.27757,3512.6,3512.1,2.27783]
[1718979813239,2.27749,3512.7,3512.1,2.27783]
[1718979813240,2.27759,3512.5,3512.1,2.27783]
[1718979813563,2.27778,3512.2,3511.7,2.27804]
[1718979813886,2.3953,3512.8,3510.8,0.29750749]
[1718979814091,2.27763,3512.5,3511.3,2.27835]
[1718979814243,2.27764,3512.4,3511.6,2.27816]
[1718979814549,2.27752,3512.6,3511.6,2.27811]
[1718979814761,2.27752,3512.6,3512.1,2.27783]
[1718979814952,2.27766,3512.4,3511.9,2.27793]
[1718979815137,2.27752,3512.6,3511.2,2.807]
[1718979815138,2.27751,3512.6,3511.2,5.08541]
[1718979815348,0.005,3512.9,3511.3,0.55]
[1718979815597,2.27747,3512.7,3512.2,2.27772]
[1718979815767,2.27747,3512.7,3512.0,2.27788]
[1718979815768,2.27745,3512.7,3512.0,2.27788]
[1718979816080,2.27759,3512.5,3512.0,4.55572]
[1718979816237,2.27759,3512.5,3512.1,2.27783]
[1718979816636,2.28235,3512.9,3512.2,2.27772]
[1718979816637,2.27753,3512.6,3512.2,2.27772]
[1718979817082,2.27746,3512.7,3512.3,2.27769]
[1718979817282,2.27757,3512.6,3512.2,2.27777]
[1718979817671,2.27757,3512.6,3511.9,2.27794]
[1718979817672,2.27751,3512.6,3511.9,2.27794]
[1718979817905,2.27772,3512.3,3511.9,2.27796]
[1718979818471,2.27765,3512.4,3511.9,2.27796]
[1718979818702,2.27751,3512.6,3511.9,2.27796]
[1718979818703,2.27751,3512.6,3512.1,2.27778]
[1718979818865,2.27774,3512.3,3511.9,2.27796]
[1718979819070,2.27774,3512.3,3511.5,2.27819]
[1718979819071,2.2778,3512.2,3511.8,2.27803]
[1718979819299,2.27761,3512.5,3512.0,2.27784]
[1718979819497,2.27744,3512.8,3512.3,2.27765]
[1718979819666,2.27751,3512.6,3512.1,2.27778]
[1718979820006,2.27746,3512.7,3512.2,2.27777]
[1718979820206,2.27746,3512.7,3511.9,2.27796]
[1718979820552,2.27738,3512.8,3512.2,2.27772]
[1718979820801,0.005,3512.9,3512.4,2.27763]
[1718979820974,0.005,3512.9,3512.3,2.27765]
[1718979821166,0.005,3512.9,3512.8,2.27738]
[1718979822706,0.005,3512.9,3512.8,4.55476]
[1718979822891,0.005,3512.9,3512.8,7.515364]
[1718979824385,0.005,3512.9,3512.8,0.683224]
[1718979824689,0.005,3512.9,3512.8,2.27738]
[1718979825476,0.005,3512.9,3512.8,4.55476]
[1718979825892,0.005,3512.9,3512.6,2.27751]
[1718979826089,0.005,3512.9,3512.4,2.27761]
[1718979826313,0.005,3512.9,3512.7,2.27741]
[1718979826529,0.005,3512.9,3512.2,2.807]
[1718979826694,2.28237,3512.9,3512.5,2.27752]
[1718979827028,0.005,3512.9,3512.5,2.27752]
[1718979827319,2.28233,3512.9,3512.4,2.27758]
[1718979827530,2.28233,3512.9,3512.5,2.733049]
[1718979828120,2.27756,3512.6,3512.1,2.27783]
[1718979828323,2.27746,3512.7,3511.5,4.67956]
[1718979828324,2.27767,3512.4,3511.5,4.67956]
[1718979828632,2.27789,3512.1,3511.6,0.467956]
[1718979828843,2.27789,3512.1,3511.3,2.27834]
[1718979828844,2.27808,3511.8,3511.3,2.27834]
[1718979828989,2.27798,3511.9,3511.3,2.27834]
[1718979828990,2.27811,3511.7,3511.3,2.27834]
[1718979829300,2.27824,3511.5,3511.1,2.27847]
[1718979829505,2.27824,3511.5,3511.0,2.5762327]
[1718979829506,4.434,3512.8,3511.0,0.2977127]
[1718979829813,2.27778,3512.2,3511.8,2.27803]
[1718979830011,2.27774,3512.3,3511.9,2.27796]
[1718979830212,2.33,3512.8,3511.3,2.3774]
[1718979830418,2.33,3512.8,3511.7,2.27809]
[1718979830623,2.27727,3513.0,3511.6,2.104]
[1718979830922,2.27726,3513.0,3512.6,2.2775]
[1718979831486,2.27719,3513.1,3512.6,2.2775]
[1718979831687,2.27719,3513.1,3512.2,2.27771]
[1718979831924,2.27719,3513.1,3512.0,2.2779]
[1718979832155,2.27719,3513.1,3512.2,2.27777]
[1718979832156,2.27751,3512.6,3512.2,2.27777]
[1718979832425,2.28233,3512.9,3512.5,2.27752]
[1718979832626,0.005,3512.9,3512.4,2.27763]
[1718979832983,0.005,3512.9,3512.8,2.27738]
[1718979833420,0.005,3512.9,3512.8,4.55476]
[1718979833689,0.005,3512.9,3512.8,5.010236]
[1718979834348,0.005,3512.9,3512.8,7.287616]
[1718979834704,0.005,3512.9,3512.8,0.455476]
[1718979834930,0.005,3512.9,3512.6,2.27749]
[1718979835088,0.005,3512.9,3512.8,4.55476]
[1718979835423,0.005,3512.9,3512.8,12.65952]
[1718979835661,0.005,3512.9,3512.8,15.03172]
[1718979836489,0.005,3512.9,3512.8,17.3091]
[1718979836718,0.005,3512.9,3512.8,19.32031]
[1718979837427,0.005,3512.9,3512.8,17.04293]
[1718979838127,0.005,3512.9,3512.8,14.76555]
[1718979838344,0.005,3512.9,3512.8,14.21555]
[1718979838563,0.005,3512.9,3512.8,16.49293]
[1718979839198,1e-05,3512.9,3512.8,21.23631]
[1718979839510,2.27584,3515.2,3512.8,21.23631]
[1718979839511,0.12070011,3515.3,3514.0,2.2766]
[1718979839718,2.27584,3515.2,3514.8,2.27603]
[1718979841341,2.27598,3515.0,3514.6,2.2762]
[1718979841546,2.22598,3515.0,3514.6,2.2762]
[1718979841702,2.22598,3515.0,3514.7,2.27615]
[1718979841906,2.22598,3515.0,3514.6,2.27621]
[1718979842127,0.12070011,3515.3,3514.6,0.227621]
[1718979842341,0.12070011,3515.3,3514.8,2.27608]
[1718979842639,0.12070011,3515.3,3514.9,2.27599]
[1718979842844,0.12070011,3515.3,3514.8,2.27607]
[1718979843147,0.12070011,3515.3,3514.1,2.803]
[1718979843148,0.12070011,3515.3,3515.0,2.27595]
[1718979843439,0.12070011,3515.3,3513.6,3.0]
[1718979843440,2.27596,3515.0,3514.2,1.139504]
[1718979843611,2.27598,3515.0,3513.6,3.0]
[1718979843815,2.27602,3514.9,3514.3,2.2764]
[1718979844017,2.27603,3514.9,3514.1,2.27649]
[1718979844219,2.27596,3515.0,3514.5,2.27627]
[1718979844446,0.12070011,3515.3,3513.9,2.27666]
[1718979844447,2.2764,3514.4,3513.9,2.27666]
[1718979844667,2.27637,3514.4,3513.1,2.27718]
[1718979844816,2.27666,3514.0,3513.5,2.27691]
[1718979845021,2.27655,3514.1,3513.7,2.27678]
[1718979845319,2.27681,3513.7,3513.2,0.4400811]
[1718979845643,4.5715,3514.8,3513.3,0.15799461]
[1718979845644,2.27687,3513.6,3513.3,0.15799461]
[1718979845827,5.27616,3514.7,3512.9,2.27731]
[1718979846040,2.27708,3513.3,3512.7,1.140002]
[1718979846224,2.27687,3513.6,3512.3,2.2789]
[1718979846225,2.2653,3513.8,3512.3,2.2789]
[1718979846430,2.2653,3513.8,3512.0,3.41808]
[1718979846431,2.27739,3512.8,3512.0,3.41808]
[1718979846667,2.803,3513.6,3512.0,1.14018]
[1718979846976,2.803,3513.6,3511.3,2.27831]
[1718979846977,2.27756,3512.6,3511.2,2.27839]
[1718979847153,2.27766,3512.4,3511.9,2.27791]
[1718979847303,2.27766,3512.4,3512.0,2.27789]
[1718979847502,2.2774,3512.8,3511.8,2.27803]
[1718979847738,2.27767,3512.4,3511.9,2.27796]
[1718979847953,2.27758,3512.5,3511.9,2.27796]
[1718979848101,2.27758,3512.5,3512.1,2.27783]
[1718979848304,2.27792,3512.0,3511.6,2.27815]
[1718979848670,2.2777,3512.4,3511.6,2.27815]
[1718979848944,3.0,3513.5,3512.0,0.75]
[1718979848945,2.803,3513.5,3512.0,0.75]
[1718979849106,3.0,3513.9,3512.4,0.75]
[1718979849107,0.3,3513.4,3512.4,0.75]
[1718979849307,2.27778,3512.2,3512.0,0.75]
[1718979849503,2.27752,3512.6,3511.8,0.75]
[1718979849815,2.27781,3512.2,3511.3,1.727839]
[1718979850016,2.27728,3513.0,3511.3,1.5]
[1718979850017,2.27823,3511.5,3511.3,1.5]
[1718979850346,2.27829,3511.4,3511.1,1.5]
[1718979850509,2.27836,3511.3,3511.1,1.5]
[1718979850740,2.27826,3511.5,3511.3,0.75]
[1718979851008,2.27815,3511.7,3511.3,0.75]
[1718979851204,2.27786,3512.1,3511.5,0.75]
[1718979851407,2.27803,3511.8,3511.5,0.75]
[1718979851712,2.27791,3512.0,3511.5,3.02822]
[1718979851928,2.27797,3511.9,3511.5,0.75]
[1718979852134,2.27806,3511.8,3511.5,0.75]
[1718979852411,2.27806,3511.8,3511.5,1.1656158]
[1718979852633,2.27816,3511.6,3511.5,1.1656158]
[1718979852817,2.27806,3511.8,3511.5,0.75]
[1718979853018,2.27789,3512.1,3511.5,1.5]
[1718979853223,2.27764,3512.4,3511.9,2.27796]
[1718979853425,2.27783,3512.1,3512.0,1.052796]
[1718979853623,2.3898,3513.1,3511.6,0.75]
[1718979853624,2.27809,3511.8,3511.6,0.75]
[1718979853947,2.27818,3511.6,3511.1,1.5]
[1718979854135,2.27804,3511.8,3511.1,1.5]
[1718979854447,2.27838,3511.3,3511.1,1.5]
[1718979854635,2.27816,3511.6,3511.1,3.77848]
[1718979854809,2.27824,3511.5,3511.1,1.5]
[1718979855004,2.27824,3511.5,3511.1,3.77848]
[1718979855209,2.27824,3511.5,3511.1,1.5]
[1718979855410,4.55684,3511.2,3510.9,0.75]
[1718979855605,5.255,3512.0,3510.7,0.75]
[1718979855811,2.27856,3511.0,3510.5,0.75]
[1718979856337,2.27881,3510.6,3510.5,0.75]
[1718979856709,2.27881,3510.6,3510.3,0.75]
[1718979856710,2.27881,3510.6,3510.3,1.5]
[1718979856917,2.27875,3510.7,3510.3,1.877913]
[1718979857110,2.27875,3510.7,3510.3,1.5]
[1718979857323,2.27888,3510.5,3510.3,0.75]
[1718979857641,2.27894,3510.4,3510.3,0.75]
[1718979857855,2.27904,3510.3,3510.1,0.75]
[1718979858153,2.27906,3510.3,3509.9,0.75]
[1718979858360,2.27894,3510.4,3509.9,1.5]
[1718979858570,2.27887,3510.5,3509.9,4.043348]
[1718979858730,2.27903,3510.3,3509.9,1.764088]
[1718979859053,2.279,3510.4,3509.9,4.043288]
[1718979859559,2.27881,3510.6,3509.9,1.764088]
[1718979860059,2.3258,3510.9,3509.9,1.764088]
[1718979860060,2.3258,3510.9,3510.1,0.75]
[1718979860259,2.27828,3511.5,3511.0,2.27853]
[1718979860417,2.27842,3511.2,3510.6,3.77875]
[1718979860621,2.27843,3511.2,3510.6,4.612404]
[1718979860928,2.27843,3511.2,3510.6,1.583654]
[1718979861131,2.27861,3510.9,3510.4,0.75]
[1718979861429,2.27889,3510.5,3510.2,0.75]
[1718979861631,2.27894,3510.4,3509.9,1.764088]
[1718979861831,2.27915,3510.1,3509.9,1.5]
[1718979862033,2.27902,3510.3,3509.7,1.5]
[1718979862255,2.27933,3509.8,3509.5,0.75]
[1718979862459,2.27926,3509.9,3509.5,0.75]
[1718979862759,2.27945,3509.7,3509.3,0.75]
[1718979863332,2.27899,3510.4,3509.7,0.75]
[1718979863532,2.27908,3510.2,3509.9,0.75]
[1718979863866,2.405,3510.6,3509.6,0.75]
[1718979863867,2.2792,3510.0,3509.6,0.75]
[1718979864082,2.27936,3509.8,3509.6,0.75]
[1718979864230,4.68381,3510.6,3509.6,0.75]
[1718979864433,2.2793,3509.9,3509.6,0.75]
[1718979864670,2.2792,3510.0,3509.6,0.75]
[1718979864874,2.405,3510.6,3509.6,0.75]
[1718979865069,4.55445,3511.1,3510.2,3.02901]
[1718979865271,4.55445,3511.1,3510.2,3.55983]
[1718979865272,2.27868,3510.8,3510.2,3.55983]
[1718979865436,2.2759,3511.1,3509.8,0.75]
[1718979865632,2.27919,3510.1,3509.7,0.75]
[1718979865835,2.27907,3510.2,3509.5,0.75]
[1718979866059,2.27934,3509.8,3509.4,3.02959]
[1718979866471,2.2792,3510.0,3509.5,2.27949]
[1718979866673,2.27929,3509.9,3509.6,0.75]
[1718979866980,2.27915,3510.1,3509.4,0.75]
[1718979867144,2.27945,3509.7,3509.4,0.75]
[1718979867345,2.27909,3510.2,3509.4,1.5]
[1718979867545,2.27951,3509.6,3509.4,0.75]
[1718979867754,2.279,3510.3,3509.0,1.5]
[1718979867956,2.27972,3509.2,3509.0,0.75]
[1718979868162,2.27973,3509.2,3509.0,0.75]
[1718979868460,2.27965,3509.3,3508.8,0.75]
[1718979868640,2.27965,3509.3,3508.6,1.5]
[1718979868641,2.27992,3508.9,3508.6,1.5]
[1718979868836,2.27997,3508.9,3508.6,1.5]
[1718979869041,2.2799,3509.0,3508.6,1.5]
[1718979869240,4.7409,3509.6,3508.8,0.75]
[1718979869476,2.27941,3509.7,3509.0,0.75]
[1718979869677,2.27946,3509.6,3509.2,2.2797]
[1718979869888,2.27946,3509.6,3509.0,3.02981]
[1718979869889,3.0,3510.2,3509.0,0.75]
[1718979870040,2.27967,3509.3,3508.7,3.03002]
[1718979870247,2.27921,3510.0,3508.7,0.75]
[1718979870436,2.27971,3509.3,3508.9,0.75]
[1718979870643,2.2795,3509.6,3508.9,1.5]
[1718979870843,2.2795,3509.6,3509.0,2.27978]
[1718979871077,2.27954,3509.5,3508.9,1.5]
[1718979871266,2.27958,3509.5,3508.9,1.5]
[1718979871553,2.27966,3509.3,3508.9,4.157908]
[1718979871757,2.2796,3509.4,3508.9,4.157908]
[1718979872251,2.2792,3510.0,3509.1,0.75]
[1718979872447,2.27919,3510.1,3509.7,2.27938]
[1718979872756,2.27893,3510.5,3509.9,0.75]
[1718979872958,2.27887,3510.5,3510.0,2.27914]
[1718979873281,2.27887,3510.5,3509.9,3.77926]
[1718979873785,2.2786,3511.0,3510.3,2.279]
[1718979874000,2.3705,3511.4,3510.6,2.27875]
[1718979874281,2.27855,3511.0,3510.5,3.02887]
[1718979874582,2.27842,3511.2,3510.5,3.02886]
[1718979874786,2.27842,3511.2,3510.5,0.75]
[1718979875201,2.27836,3511.3,3510.0,1.5]
[1718979875483,4.6488,3511.4,3510.0,0.75]
[1718979875484,2.27898,3510.4,3510.0,0.75]
[1718979875642,2.279,3510.4,3510.0,0.75]
[1718979875851,4.6488,3511.4,3510.3,3.029]
[1718979876057,2.27855,3511.0,3510.5,3.02884]
[1718979876257,2.27848,3511.2,3510.2,0.75]
[1718979876596,2.3705,3511.4,3510.4,2.2789]
[1718979876597,2.27865,3510.9,3510.4,2.2789]
[1718979876897,2.27875,3510.7,3510.2,0.75]
[1718979877121,2.27886,3510.6,3510.2,3.02906]
[1718979877793,2.27879,3510.7,3510.2,0.75]
[1718979878090,2.27887,3510.5,3510.0,1.5]
[1718979878291,2.27879,3510.7,3509.8,0.75]
[1718979878491,2.27894,3510.4,3509.8,0.75]
[1718979878677,2.27888,3510.5,3510.1,2.27913]
[1718979879003,2.27888,3510.5,3510.0,2.27919]
[1718979879301,2.27881,3510.6,3510.2,2.27907]
[1718979879508,2.27852,3511.1,3510.3,0.75]
[1718979879660,2.27852,3511.1,3510.1,2.27913]
[1718979879661,2.27876,3510.7,3510.2,2.27906]
[1718979879856,2.27893,3510.5,3510.0,3.02919]
[1718979880054,2.27893,3510.5,3510.1,2.27913]
[1718979880260,2.4537,3512.2,3510.2,2.2629]
[1718979880455,2.27761,3512.5,3511.8,2.27797]
[1718979880658,2.4537,3512.9,3512.1,2.27783]
[1718979880909,2.27732,3512.9,3512.0,0.75]
[1718979881108,2.27732,3512.9,3512.0,1.5]
[1718979881412,2.27746,3512.7,3512.2,2.27775]
[1718979881785,4.73068,3513.5,3512.3,0.75]
[1718979881987,4.73068,3513.5,3512.5,0.75]
[1718979882205,2.27712,3513.2,3512.7,2.27743]
[1718979882409,4.55418,3513.3,3512.7,2.27743]
[1718979882724,2.4537,3513.5,3512.7,2.27743]
[1718979882725,2.27715,3513.2,3512.7,2.27743]
[1718979883480,2.4537,3513.5,3512.7,0.75]
[1718979883681,4.73067,3513.5,3512.7,0.75]
[1718979883895,1.94416,3513.2,3512.7,0.75]
[1718979884315,2.27749,3512.7,3512.4,0.75]
[1718979884640,2.27707,3513.3,3512.4,0.75]
[1718979884787,2.27739,3512.8,3512.4,3.02763]
[1718979885109,2.27739,3512.8,3512.3,0.75]
[1718979885311,2.27726,3513.0,3511.8,0.75]
[1718979885476,2.27784,3512.1,3511.8,0.75]